Cogmind - Beta 13 @@@ ROGUE MODE // 2024.07.08 @ 19:54:23 Player: H3-RMN Result: Destroyed by H-66 Slayer with Gauss Rifle Performance ------------- Evolutions (4) 2000 Regions Visited (14) 2800 Robots Destroyed (159) 795 Value Destroyed (4819) 4819 Prototype IDs (61) 1220 Alien Tech Used (0) 0 Bonus (965) 965 TOTAL SCORE: 12599 Bonus ------- High Alert Combat Kills 554 Follower Combat Kills 150 Met Imprinter 300 Friendly Fire -39 Cogmind --------- Core Integrity 0/850 Matter 292/300 Energy 150/150 System Corruption 6% Temperature Cool (0) Movement Hovering (62) Location -6/Lower Caves Parts ------- > --- POWER (1) -------- Micro Nuclear Core > --- PROPULSION (4) --- Combat Airjet Gravmag Array Gyrokinetic Inverter > --- UTILITY (8) ------ Large Storage Unit Advanced Signal Interpreter Improved Medium Armor Plating Hacking Suite Hacking Suite Hacking Suite Hacking Suite Experimental System Shield > --- WEAPON (2) ------- Greatsword > --- INVENTORY (15) --- Gyrokinetic Inverter Gyrokinetic Inverter Gyrokinetic Inverter Experimental Matter Compressor (500) Quantum Shading Machine Precision Matter Filter Authchip [Propulsion] Authchip [Propulsion] Cooled Particle Cannon Guided EMP Blaster Tiamat Missile Launcher Advanced Micro-nuke Launcher Multitool CR-A16's Pointy Stick Peak State ------------ > --- POWER ------------ Light Fission Core > --- PROPULSION ------- Combat Airjet Cooled Gravmag System Cooled Gravmag System Cooled Gravmag System > --- UTILITY ---------- Large Storage Unit Experimental Matter Compressor Quantum Shading Machine Improved Sensor Array Improved Signal Interpreter Hacking Suite Hacking Suite Hacking Suite > --- WEAPON ----------- Mini Smartbomb Launcher Ionic Axe > --- INVENTORY -------- Gravmag System Huge Storage Unit Advanced Matter Compressor Advanced Matter Compressor Precision Matter Filter Experimental System Shield Authchip [Weapon] Heavy Wave Gun Cooled Particle Cannon Hypervelocity Railgun Advanced Micro-nuke Launcher Multitool RU-N14's Throwing Claymores RU-N14's Throwing Claymores CR-A16's Pointy Stick [Rating: 88] Favorites ----------- Power Micro Nuclear Core Engine Improved Ion Engine Power Core Micro Nuclear Core Reactor Cold Fusion Reactor Propulsion Cooled Gravmag System Treads Armored Treads Wheel Compact Wheel Hover Unit Cooled Gravmag System Flight Unit Improved Cesium-ion Thruster Utility Hacking Suite Device Improved Sensor Array Storage Large Storage Unit Processor Improved Signal Interpreter Hackware Hacking Suite Protection Makeshift Light Armor Plating Weapon Ionic Axe Energy Gun Cooled Pulse Rifle Energy Cannon Subdweller Beam Cannon Ballistic Gun Assault Rifle Ballistic Cannon Battle Cannon Launcher Improved Grenade Launcher Special Weapon RU-N14's Throwing Claymores Impact Weapon Makeshift Hammer Slashing Weapon Ionic Axe Piercing Weapon CR-A16's Pointy Stick Special Melee Weapon Improved Datajack Build | -11 -10 -10 -10 -8 -7 -7 -7 -7 -6 -6 -6 -6 -6 -6 ------- Run | Yrd Mat Min Sub Mat Fac Low Low Zio Pro Fac Was Fac Low Low Slots Evolved 8 | . . . . 4 2 . . . . 2 . . . . Power . | . . . . . . . . . . . . . . . Propulsion 2 | . . . . 2 . . . . . . . . . . Utility 6 | . . . . 2 2 . . . . 2 . . . . Weapon . | . . . . . . . . . . . . . . . Parts Attached 259 | 8 1 4 18 62 85 1 . 11 1 31 2 33 2 . Power 20 | 1 . 1 . 7 6 . . . . 2 . 3 . . Engine 11 | 1 . 1 . 6 3 . . . . . . . . . Core 8 | . . . . 1 3 . . . . 2 . 2 . . Reactor 1 | . . . . . . . . . . . . 1 . . Propulsion 52 | 3 . . 4 16 15 . . . . 6 . 6 2 . Treads 19 | 1 . . 2 14 2 . . . . . . . . . Leg . | . . . . . . . . . . . . . . . Wheel 6 | 2 . . 2 2 . . . . . . . . . . Hover 19 | . . . . . 6 . . . . 6 . 5 2 . Flight 8 | . . . . . 7 . . . . . . 1 . . Utility 103 | 2 1 1 2 18 39 . . 3 1 19 2 15 . . Device 47 | 1 . 1 . 4 27 . . . 1 8 2 3 . . Storage 16 | 1 1 . 1 4 3 . . 1 . 2 . 3 . . Processor 11 | . . . . 2 2 . . 1 . 4 . 2 . . Hackware 13 | . . . . 1 3 . . . . 3 . 6 . . Protection 16 | . . . 1 7 4 . . 1 . 2 . 1 . . Artifact . | . . . . . . . . . . . . . . . Weapon 84 | 2 . 2 12 21 25 1 . 8 . 4 . 9 . . Energy Gun 10 | . . . 1 5 2 . . 1 . . . 1 . . Energy Cannon 3 | . . . . 2 . . . . . . . 1 . . Ballistic Gun 11 | 2 . 1 4 2 2 . . . . . . . . . Ballistic Cannon 13 | . . . 3 6 4 . . . . . . . . . Launcher 12 | . . 1 3 . 3 . . . . 2 . 3 . . Special Weapon 10 | . . . . 4 2 . . 2 . 1 . 1 . . Impact Weapon 2 | . . . . 2 . . . . . . . . . . Slashing Weapon 13 | . . . 1 . 6 1 . 3 . 1 . 1 . . Piercing Weapon 2 | . . . . . . . . . . . . 2 . . Special Melee Weapon 8 | . . . . . 6 . . 2 . . . . . . Unidentified Prototypes 23 | . . . . 1 12 . . 1 . 6 . 3 . . Parts Lost 38 | . . . 3 11 4 . . . . 9 . 11 . . Power 4 | . . . . 1 1 . . . . 1 . 1 . . Propulsion 15 | . . . . 6 1 . . . . 2 . 6 . . Utility 14 | . . . 1 2 2 . . . . 6 . 3 . . Weapon 5 | . . . 2 2 . . . . . . . 1 . . Highest Loss Streak 10 | . . . 1 7 2 . . . . 4 . 10 . . To Critical Strikes 1 | . . . 1 . . . . . . . . . . . Average Slot Usage (%) 92 | . 100 100 93 84 97 100 100 99 100 98 100 88 86 86 Engine 6 | . 14 14 14 7 3 . . . . . . . . . Core 2 | . . . . 1 2 7 7 7 7 6 6 5 6 6 Treads 14 | . 14 14 8 33 13 . . . . . . . . . Wheel 5 | . 14 14 19 2 . . . . . . . . . . Hover 9 | . . . . . 12 30 30 30 30 25 26 18 20 20 Device 6 | . 14 14 7 . 9 7 7 5 6 7 13 5 . . Storage 9 | . 14 14 14 9 7 7 7 7 7 6 13 7 6 6 Processor 8 | . . . . 4 15 23 23 23 23 19 6 7 6 6 Hackware 6 | . . . . 2 7 7 7 7 7 12 20 28 33 33 Protection 3 | . . . . 9 3 . . 1 . 4 . . 6 6 Energy Gun 2 | . . . 4 1 4 . . . . . . . . . Ballistic Gun 5 | . 28 27 14 2 . . . . . . . . . . Ballistic Cannon 3 | . . . 7 6 2 . . . . . . . . . Slashing Weapon 3 | . . . . . 4 7 7 7 15 12 6 5 6 6 Naked Turns . | . . . . . . . . . . . . . . . Heaviest Build 232 | 14 29 32 215 232 53 37 37 41 41 46 38 43 38 38 Greatest Support 83 | 32 16 16 36 83 70 44 44 44 44 64 60 55 43 43 Greatest Overweight (x) 21 | . 1 1 13 21 3 . . . . 12 . 1 1 . Average Overweight (x) . | . . 1 3 2 . . . . . . . . . . Largest Inventory Capacity 35 | 8 15 15 35 35 15 15 15 15 15 15 15 15 15 15 Average Capacity 21 | 7 14 15 24 34 14 15 15 15 15 15 15 15 15 15 Most Carried 35 | 6 15 15 28 35 15 15 15 15 15 15 15 15 15 15 Average Carried 19 | 3 9 14 17 33 14 14 15 14 15 14 14 13 15 14 Final Capacity 35 | 8 15 15 35 15 15 15 15 15 15 15 15 15 15 15 Final Carried 28 | 6 15 15 28 15 15 15 15 15 15 15 15 15 15 15 Class Distribution -------------------- 34% | Hauler-Mutant 19% | Mutant 12% | Trapper-Scout 11% | Hacker-Mutant 7% | Scavenger-Mutant 7% | Trapper-Gladiator 3% | Scavenger-Scout Dominant Class ---------------- Mutant | -10/Materials Mutant | -10/Mines Mutant | -10/Subcaves Hauler-Mutant | -8/Materials Scavenger-Mutant | -7/Factory Trapper-Scout | -7/Lower Caves Trapper-Scout | -7/Lower Caves Trapper-Scout | -7/Zion Trapper-Gladiator | -6/Proximity Caves Trapper-Scout | -6/Factory Hacker-Mutant | -6/Waste Hacker-Mutant | -6/Factory Hacker-Mutant | -6/Lower Caves Hacker-Mutant | -6/Lower Caves Resources | -11 -10 -10 -10 -8 -7 -7 -7 -7 -6 -6 -6 -6 -6 -6 ----------- Run | Yrd Mat Min Sub Mat Fac Low Low Zio Pro Fac Was Fac Low Low Matter Collected 6349 | 296 52 152 561 1780 1905 37 . 110 10 407 . 883 156 . Remotely 227 | . . . . . . . . . . 227 . . . . Salvage Created 5574 | 71 42 37 297 1264 1552 . 15 . 14 1235 . 920 79 48 Parts 291 | 7 5 7 20 73 63 . . . 2 61 . 48 3 2 Haulers Intercepted 8 | . . . . 2 1 . . . . 4 . 1 . . Recyclers Shooed 5 | 1 . . . 2 1 . . . . . . 1 . . Parts Field Recycled . | . . . . . . . . . . . . . . . Retrieved Matter . | . . . . . . . . . . . . . . . Parts Self-Destructed 16 | . . . 8 . . 3 . . 2 . . . 2 1 Prevented . | . . . . . . . . . . . . . . . Kills | -11 -10 -10 -10 -8 -7 -7 -7 -7 -6 -6 -6 -6 -6 -6 ------- Run | Yrd Mat Min Sub Mat Fac Low Low Zio Pro Fac Was Fac Low Low Combat Hostiles Destroyed 97 | . . 3 11 22 23 . . . 1 13 . 22 1 1 Melee 17 | . . . . . 5 . . . 1 9 . . 1 1 Guns 11 | . . . 2 6 3 . . . . . . . . . Cannons 22 | . . . 3 15 1 . . . . 2 . 1 . . AOE 47 | . . 3 6 1 14 . . . . 2 . 21 . . Classes Destroyed 19 | 2 2 2 2 6 2 . . . 1 . . 1 1 . Worker 14 | . . 1 . 1 1 . . . . 4 . 7 . . Builder 3 | . . . . . . . . . . . . 3 . . Tunneler 2 | 1 . . . 1 . . . . . . . . . . Hauler 8 | . . . . 2 1 . . . . 4 . 1 . . Recycler 16 | 1 . . . 2 10 . . . . 1 . 2 . . Mechanic 4 | . 1 . . 1 . . . . . 1 . 1 . . Operator 3 | . . . . 1 . . . . . . . 2 . . Drone 1 | . . . . . . . . . 1 . . . . . Watcher 12 | . 1 . . 3 4 . . . . 2 . 2 . . Swarmer 29 | . . 3 . 1 11 . . . . 4 . 10 . . Cutter 2 | . . . . . 2 . . . . . . . . . Grunt 28 | . . . . 8 4 . . . . 8 . 8 . . Sentry 13 | . . . . 10 1 . . . . . . 2 . . Hunter 6 | . . . . 2 2 . . . . . . 2 . . Programmer 6 | . . . . . 3 . . . . 1 . . 1 1 Heavy 1 | . . . . 1 . . . . . . . . . . Cobbler 1 | . . . 1 . . . . . . . . . . . Subdweller 11 | . . . 11 . . . . . . . . . . . Decomposer 1 | . . . . . . . 1 . . . . . . . Samaritan 1 | . . . . . . . . . . . . . 1 . Best Kill Streak 26 | 2 1 4 3 4 11 . . . 1 9 . 26 1 1 Combat Bots Only 15 | . . 3 3 3 10 . . . 1 9 . 15 1 1 Max Kills in Single Turn 4 | 1 1 2 1 2 4 . 1 . 1 2 . 4 1 1 Gunslinging . | . . . . . . . . . . . . . . . Exploded 4 | . . 2 1 1 4 . . . . 1 . 3 . . Melee 1 | . . . . . 1 . . . 1 1 . . 1 1 Uniques/NPCs Destroyed . | . . . . . . . . . . . . . . . Combat | -11 -10 -10 -10 -8 -7 -7 -7 -7 -6 -6 -6 -6 -6 -6 -------- Run | Yrd Mat Min Sub Mat Fac Low Low Zio Pro Fac Was Fac Low Low Hostile Shots Fired 777 | . . 4 47 155 217 . . . 1 108 . 213 12 20 Missed 308 | . . . 16 39 110 . . . 1 39 . 93 5 5 Damage Taken 7274 | . . 54 820 1979 1337 . . . . 1365 . 1344 124 251 Core 1672 | . . 6 207 186 410 . . . . 359 . 411 15 78 Absorbed by Shields 224 | . . . 106 . . . . . . . . 118 . . Redirected to Shielding 10 | . . . . 10 . . . . . . . . . . Regen/Repaired (Parts) 190 | . . . . . . . . . . 190 . . . . Core Remaining (%) 55 | 100 . . 14 66 . . . . 41 . . . . . Volleys Fired 246 | 4 6 4 58 123 26 . . . . 3 . 22 . . Largest 2 | 2 2 2 2 2 2 . . . . 1 . 1 . . Hottest 119 | 40 40 40 99 119 68 . . . . . . 90 . . Shots Fired 342 | 8 12 6 83 173 35 . . . . 3 . 22 . . Gun 150 | 8 12 4 38 70 18 . . . . . . . . . Cannon 143 | . . . 32 102 7 . . . . . . 2 . . Launcher 37 | . . 2 13 . 7 . . . . . . 15 . . Special 12 | . . . . 1 3 . . . . 3 . 5 . . Kinetic 213 | 8 12 4 57 125 7 . . . . . . . . . Thermal 84 | . . . 13 48 21 . . . . . . 2 . . Explosive 45 | . . 2 13 . 7 . . . . 3 . 20 . . Electromagnetic . | . . . . . . . . . . . . . . . Robot Hit Streak 13 | 6 8 3 7 12 12 . . . . 13 . 8 . . Robot Miss Streak 7 | . 1 1 3 5 7 . . . . 1 . . . . Penetration Max . | . . . . . . . . . . . . . . . Secondary Targets . | . . . . . . . . . . . . . . . Shots Hit Robots 288 | 6 10 3 44 99 48 . 1 1 2 44 . 17 7 6 Core Hits 215 | 3 4 4 27 43 46 . . . 1 24 . 61 1 1 Critical Kills 1 | . 1 . . . . . . . . . . . . . Critical Parts Destroyed . | . . . . . . . . . . . . . . . Critical Strikes 11 | . 1 . . 5 3 . . . . 2 . . . . Destroy 1 | . 1 . . . . . . . . . . . . . Blast 5 | . . . . 5 . . . . . . . . . . Sever 5 | . . . . . 3 . . . . 2 . . . . Melee Attacks 173 | . . . 1 . 60 . 2 9 18 49 . 17 10 7 Impact . | . . . . . . . . . . . . . . . Slashing 165 | . . . 1 . 57 . 2 8 18 49 . 13 10 7 Piercing 4 | . . . . . . . . . . . . 4 . . Sneak Attacks 33 | . . . . . 13 . 1 1 . 12 . 4 2 . Combat Hostiles . | . . . . . . . . . . . . . . . Follow-up Attacks 9 | . . . . . 3 . . . 3 3 . . . . Damage Inflicted 16858 | 67 110 217 1614 3071 3087 . 76 . 87 3350 . 4405 455 319 Guns 1735 | 67 110 32 432 884 210 . . . . . . . . . Cannons 2479 | . . . 260 2110 109 . . . . . . . . . Explosions 6264 | . . 185 922 70 1011 . . . . 446 . 3630 . . Melee 6142 | . . . . . 1754 . 76 . 87 2788 . 663 455 319 Ramming . | . . . . . . . . . . . . . . . Kinetic 3163 | 67 110 32 504 2341 109 . . . . . . . . . Thermal 1131 | . . . 188 730 213 . . . . . . . . . Explosive 6194 | . . 185 922 . 1011 . . . . 446 . 3630 . . Electromagnetic . | . . . . . . . . . . . . . . . Impact . | . . . . . . . . . . . . . . . Slashing 6226 | . . . . . 1754 . 76 . 87 2904 . 631 455 319 Piercing 144 | . . . . . . . . . . . . 144 . . Highest Corruption 6 | . . . . 4 4 . . . . . 5 5 6 6 Average Corruption 3 | . . . . 3 2 . . . . . 5 5 5 6 Corruption Purged 4 | . . . . . 4 . . . . . . . . . Corruption Blocked . | . . . . . . . . . . . . . . . Effects 103 | . . . . 54 22 . . . . . 1 17 5 4 Message Errors 31 | . . . . 18 5 . . . . . . 6 1 1 Matter Fused 27 | . . . . 17 6 . . . . . . 2 1 1 Heat Flow Errors 15 | . . . . 6 5 . . . . . 1 3 . . Energy Discharges 11 | . . . . 4 1 . . . . . . 3 2 1 Parts Fused 1 | . . . . . 1 . . . . . . . . . Data Loss (minor) 11 | . . . . 4 2 . . . . . . 3 1 1 Data Loss (major) 3 | . . . . 2 1 . . . . . . . . . Misfires 2 | . . . . 2 . . . . . . . . . . Alerts 2 | . . . . 1 1 . . . . . . . . . Overload Shots 6 | . . . . . 4 . . . . . . 2 . . Overflow Damage 1442 | . . 7 . 208 348 . 68 . 10 355 . 289 132 25 Projectiles 232 | . . . . 208 9 . . . . 15 . . . . Explosions 199 | . . 7 . . 39 . . . . 20 . 133 . . Melee 1011 | . . . . . 300 . 68 . 10 320 . 156 132 25 Knockbacks 8 | . . . 4 4 . . . . . . . . . . Impact . | . . . . . . . . . . . . . . . Kinetic 8 | . . . 4 4 . . . . . . . . . . Secondary . | . . . . . . . . . . . . . . . Self-Inflicted Damage 310 | . . 28 39 61 143 . . . . . . 39 . . Shots 7 | . . 1 1 1 3 . . . . . . 1 . . Rammed . | . . . . . . . . . . . . . . . Targets Rammed . | . . . . . . . . . . . . . . . Kicked . | . . . . . . . . . . . . . . . Crushed . | . . . . . . . . . . . . . . . Highest Temperature 395 | . . 2 303 395 248 . . . . 1 215 145 . . Average Temperature 93 | . . 1 103 105 53 . . . . 1 114 40 . . Received Heat Transfer 2036 | . . . 443 774 192 . . . . 333 . 282 12 . Effects 7 | . . . . 7 . . . . . . . . . . Energy Bleed 3 | . . . . 3 . . . . . . . . . . Interference 1 | . . . . 1 . . . . . . . . . . Matter Decay 1 | . . . . 1 . . . . . . . . . . Damage (minor) 2 | . . . . 2 . . . . . . . . . . Siege Activations . | . . . . . . . . . . . . . . . Robots Corrupted . | . . . . . . . . . . . . . . . Combat Hostiles . | . . . . . . . . . . . . . . . Parts Fried . | . . . . . . . . . . . . . . . Impact Corruptions . | . . . . . . . . . . . . . . . Robots Melted . | . . . . . . . . . . . . . . . Combat Hostiles . | . . . . . . . . . . . . . . . Parts Melted 3 | . . . 2 . 1 . . . . . . . . . Heat Transferred 1679 | . . . 225 1041 413 . . . . . . . . . Parts Sabotaged . | . . . . . . . . . . . . . . . Parts Stolen . | . . . . . . . . . . . . . . . Parts Stripped . | . . . . . . . . . . . . . . . Power Chain Reactions . | . . . . . . . . . . . . . . . Alert | -11 -10 -10 -10 -8 -7 -7 -7 -7 -6 -6 -6 -6 -6 -6 ------- Run | Yrd Mat Min Sub Mat Fac Low Low Zio Pro Fac Was Fac Low Low Peak Influence 971 | 10 91 119 . 401 971 . . . . 660 222 890 . . Initial 450 | . 6 35 . . 98 . . . . 450 222 155 . . Average 225 | 4 45 62 . 137 236 . . . . 411 222 593 . . Maximum Alert Level 3 | . . . . 2 3 . . . . 2 1 3 . . Low Security (%) 52 | 100 100 100 . 60 54 . . . . 11 . 2 . . Level 1 24 | . . . . 37 20 . . . . 22 100 10 . . Level 2 19 | . . . . 1 25 . . . . 65 . 49 . . Level 3 3 | . . . . . . . . . . . . 37 . . Level 4 . | . . . . . . . . . . . . . . . Level 5 . | . . . . . . . . . . . . . . . High Security . | . . . . . . . . . . . . . . . Max Security . | . . . . . . . . . . . . . . . Squads Dispatched 33 | . 1 . . 7 15 . . . . 5 . 5 . . Investigation 14 | . 1 . . 2 6 . . . . 1 . 4 . . Extermination 2 | . . . . . 2 . . . . . . . . . Reinforcement 10 | . . . . 3 4 . . . . 3 . . . . Assault 2 | . . . . . . . . . . 1 . 1 . . Garrison 5 | . . . . 2 3 . . . . . . . . . Intercept . | . . . . . . . . . . . . . . . Searches Triggered 2 | . . . . . 1 . . . . 1 . . . . Construction Impeded 1 | . . . . 1 . . . . . . . . . . Haulers Reinforced 4 | . . . . . 2 . . . . 2 . . . . Active Scanning Responses . | . . . . . . . . . . . . . . . Cargo Convoy Interrupts 2 | . . . . . 1 . . . . 1 . . . . Stealth | -11 -10 -10 -10 -8 -7 -7 -7 -7 -6 -6 -6 -6 -6 -6 --------- Run | Yrd Mat Min Sub Mat Fac Low Low Zio Pro Fac Was Fac Low Low Distress Signals 14 | . . . . 6 . . . . . 5 . 3 . . Communications Jammed . | . . . . . . . . . . . . . . . Distress Signals . | . . . . . . . . . . . . . . . Times Spotted 206 | . 4 3 15 32 59 . . . 6 37 5 41 2 2 Peak Tracking Total 16 | . 1 3 2 4 10 . . . 5 10 5 16 2 1 Tactical Retreats 24 | . . . . . 12 . . . 2 3 . 6 1 . Traps | -11 -10 -10 -10 -8 -7 -7 -7 -7 -6 -6 -6 -6 -6 -6 ------- Run | Yrd Mat Min Sub Mat Fac Low Low Zio Pro Fac Was Fac Low Low Traps Triggered 8 | . . . 1 . 5 . . . . 1 . 1 . . Indirectly . | . . . . . . . . . . . . . . . Trap Hack Attempts 101 | . . . . . 101 . . . . . . . . . Triggered . | . . . . . . . . . . . . . . . Disarmed . | . . . . . . . . . . . . . . . Reprogrammed 23 | . . . . . 13 . . . . . . 10 . . Reused 12 | . . . . . 1 . . . . 9 . 2 . . Traps Extracted 16 | . . . . . 15 . . . . 1 . . . . Installed 14 | . . . 1 . 3 . . . . 10 . . . . Triggered 13 | . . . . . 1 1 . . . 9 . 2 . . Most Traps Carried 12 | . . 1 2 2 12 12 12 12 12 12 . . . . Machines | -11 -10 -10 -10 -8 -7 -7 -7 -7 -6 -6 -6 -6 -6 -6 ---------- Run | Yrd Mat Min Sub Mat Fac Low Low Zio Pro Fac Was Fac Low Low Machines Disabled 17 | . . . 1 6 2 . . . . . . 8 . . Max in Single Turn 3 | . . . 1 1 1 . . . . . . 3 . . Garrison Access 6 | . . . . 1 2 . . . . 2 . 1 . . Machines Repaired . | . . . . . . . . . . . . . . . Machines Dismantled . | . . . . . . . . . . . . . . . Machines Sabotaged . | . . . . . . . . . . . . . . . Overloaded Fab Kills . | . . . . . . . . . . . . . . . Hacking | -11 -10 -10 -10 -8 -7 -7 -7 -7 -6 -6 -6 -6 -6 -6 --------- Run | Yrd Mat Min Sub Mat Fac Low Low Zio Pro Fac Was Fac Low Low Machines Accessed 73 | . 4 . 1 14 20 1 1 . . 13 . 17 1 1 Terminals 35 | . 3 . . 8 10 . . . . 5 . 8 1 . Fabricators 10 | . . . . . 4 . . . . 2 . 4 . . Repair Stations 7 | . . . . 2 . . . . . 3 . 2 . . Recycling Units 5 | . 1 . . 1 1 . . . . 1 . 1 . . Scanalyzers 7 | . . . . 2 3 . . . . 1 . 1 . . Garrison Access 5 | . . . . 1 2 . . . . 1 . 1 . . Total Hacks 213 | . 11 . 1 51 57 1 1 . . 35 . 53 2 1 Successful 136 | . 5 . 1 32 28 1 1 . . 23 . 42 2 1 Failed 75 | . 5 . . 18 29 . . . . 12 . 11 . . Catastrophic 9 | . . . . 2 6 . . . . . . 1 . . Database Lockouts 2 | . 1 . . 1 . . . . . . . . . . Manual 65 | . 9 . . 19 13 . . . . 11 . 13 . . Terminals 107 | . 9 . . 31 25 . . . . 11 . 29 2 . Fabricators 28 | . . . . . 8 . . . . 7 . 13 . . Repair Stations 22 | . . . . 6 . . . . . 11 . 5 . . Recycling Units 12 | . 2 . . 4 2 . . . . 2 . 2 . . Scanalyzers 33 | . . . . 9 19 . . . . 2 . 3 . . Garrison Access 7 | . . . . 1 3 . . . . 2 . 1 . . Terminal Hacks 51 | . 2 . 1 14 8 1 1 . . 4 . 17 2 1 Record 2 | . . . . . . . . . . . . . 2 . Part Schematic 8 | . . . . 3 2 . . . . . . 3 . . Robot Analysis 3 | . 1 . . 2 . . . . . . . . . . Prototype ID Bank 6 | . 1 . . 3 . . . . . 1 . 1 . . Open Door 3 | . . . . . . 1 1 . . . . . . 1 Level Access Points 1 | . . . . . 1 . . . . . . . . . Branch Access Points 1 | . . . . . . . . . . . . 1 . . Machine Index 2 | . . . . . . . . . . 1 . 1 . . Terminal Index 2 | . . . . 1 1 . . . . . . . . . Fabricator Index 1 | . . . . . . . . . . 1 . . . . Alert Level 2 | . . . . . 1 . . . . . . 1 . . Unreport Threat 2 | . . . . 1 . . . . . . . 1 . . Locate Traps 5 | . . . . 1 1 . . . . 1 . 2 . . Reprogram Traps 2 | . . . . . . . . . . . . 2 . . Hauler Manifests 3 | . . . . 2 . . . . . . . 1 . . Zone Layout 7 | . . . . 1 2 . . . . . . 4 . . Derelict Proto ID Bank 1 | . . . 1 . . . . . . . . . . . Fabricator Hacks 12 | . . . . . 1 . . . . 3 . 8 . . Network Status 2 | . . . . . . . . . . 1 . 1 . . Load Schematic 7 | . . . . . 1 . . . . 1 . 5 . . Build 3 | . . . . . . . . . . 1 . 2 . . Repair Station Hacks 10 | . . . . 1 . . . . . 7 . 2 . . Scan Component 6 | . . . . . . . . . . 4 . 2 . . Repair 3 | . . . . . . . . . . 3 . . . . Refit 1 | . . . . 1 . . . . . . . . . . Recycling Unit Hacks 5 | . 1 . . 2 1 . . . . . . 1 . . Report Inventory 4 | . 1 . . 1 1 . . . . . . 1 . . Retrieve Components 1 | . . . . 1 . . . . . . . . . . Scanalyzer 28 | . . . . 9 14 . . . . 2 . 3 . . Insert Component 13 | . . . . 4 7 . . . . 1 . 1 . . Analyze 15 | . . . . 5 7 . . . . 1 . 2 . . Garrison Access Hacks 5 | . . . . 1 2 . . . . 1 . 1 . . Seal Access 5 | . . . . 1 2 . . . . 1 . 1 . . Unauthorized Hacks 25 | . 2 . . 5 2 . . . . 6 . 10 . . Terminals 13 | . 1 . . 4 1 . . . . 2 . 5 . . Track 3 | . . . . 1 . . . . . . . 2 . . Assimilate 3 | . . . . . 1 . . . . 1 . 1 . . Botnet 6 | . 1 . . 2 . . . . . 1 . 2 . . Operators 1 | . . . . 1 . . . . . . . . . . Fabricators 7 | . . . . . 1 . . . . 2 . 4 . . Prioritize 1 | . . . . . . . . . . 1 . . . . Haulers 1 | . . . . . . . . . . . . 1 . . Recompile 5 | . . . . . 1 . . . . 1 . 3 . . Repair Stations . | . . . . . . . . . . . . . . . Recycling Units 5 | . 1 . . 1 . . . . . 2 . 1 . . Reject 1 | . . . . . . . . . . 1 . . . . Mask 2 | . . . . 1 . . . . . 1 . . . . Tunnel 2 | . 1 . . . . . . . . . . 1 . . Scanalyzers . | . . . . . . . . . . . . . . . Garrison Access . | . . . . . . . . . . . . . . . Data Cores Recovered 2 | . . . . 1 . . . . . . . 1 . . Used . | . . . . . . . . . . . . . . . Hacking Detections 54 | . 4 . . 10 18 . . . . 11 . 11 . . Full Trace Events 9 | . . . . 4 5 . . . . . . . . . Feedback Events 1 | . . . . 1 . . . . . . . . . . Corruption 1 | . . . . 1 . . . . . . . . . . Feedback Blocked . | . . . . . . . . . . . . . . . Robot Schematics Acquired 2 | . . . . . . . . 2 . . . . . . Robots Built . | . . . . . . . . . . . . . . . Authchips . | . . . . . . . . . . . . . . . Time . | . . . . . . . . . . . . . . . Total Robot Build Rating . | . . . . . . . . . . . . . . . Part Schematics Acquired 35 | . . . . 6 8 . . 16 . 1 . 4 . . Parts Built 3 | . . . . . . . . . . 1 . 2 . . Authchips 3 | . . . . . . . . . . 1 . 2 . . Time 235 | . . . . . . . . . . 84 . 151 . . Total Part Build Rating 17 | . . . . . . . . . . 6 . 11 . . Parts Repaired 2 | . . . . . . . . . . 2 . . . . Time 222 | . . . . . . . . . . 222 . . . . Parts Recycled . | . . . . . . . . . . . . . . . Recycled Matter . | . . . . . . . . . . . . . . . Retrieved Matter . | . . . . . . . . . . . . . . . Retrieved Components 10 | . . . . 10 . . . . . . . . . . Parts Scanalyzed 13 | . . . . 4 7 . . . . 1 . 1 . . Part Schematics Acquired 11 | . . . . 3 6 . . . . 1 . 1 . . Parts Damaged . | . . . . . . . . . . . . . . . Bothacking | -11 -10 -10 -10 -8 -7 -7 -7 -7 -6 -6 -6 -6 -6 -6 ------------ Run | Yrd Mat Min Sub Mat Fac Low Low Zio Pro Fac Was Fac Low Low Used RIF Installer . | . . . . . . . . . . . . . . . Robots Hacked 4 | . . . . . 3 . . 1 . . . . . . Non-combat 2 | . . . . . 2 . . . . . . . . . Combat 2 | . . . . . 1 . . 1 . . . . . . Robot Hacks Applied 4 | . . . . . 3 . . 1 . . . . . . parse_system 3 | . . . . . 2 . . 1 . . . . . . find_chute 1 | . . . . . 1 . . . . . . . . . Relay Couplers Released 3 | . . . . 1 . . . . . 2 . . . . Machine Destruction 3 | . . . . 1 . . . . . 2 . . . . Fabnet Peak Effective % . | . . . . . . . . . . . . . . . Robots Rewired . | . . . . . . . . . . . . . . . Allies Hacked . | . . . . . . . . . . . . . . . Hacks Repelled . | . . . . . . . . . . . . . . . Allies | -11 -10 -10 -10 -8 -7 -7 -7 -7 -6 -6 -6 -6 -6 -6 -------- Run | Yrd Mat Min Sub Mat Fac Low Low Zio Pro Fac Was Fac Low Low Total Allies 8 | . . 3 . . 4 . . . . 1 . . . . Largest Group 3 | . . 3 3 . 3 . . . . 1 . . . . Highest-Rated Group 93 | . . 40 40 . 93 . . . . 26 . . . . Highest-Rated Ally 31 | . . 16 16 . 31 . . . . 26 . . . . Total Orders 2 | . . . . . . . . . . 2 . . . . STAY 1 | . . . . . . . . . . 1 . . . . FOLLOW 1 | . . . . . . . . . . 1 . . . . Ally Attacks 57 | . . . 37 . 20 . . . . . . . . . Total Damage 518 | . . . 384 . 134 . . . . . . . . . Kills 5 | . . . 5 . . . . . . . . . . . Allies Corrupted . | . . . . . . . . . . . . . . . Allies Melted . | . . . . . . . . . . . . . . . Intel | -11 -10 -10 -10 -8 -7 -7 -7 -7 -6 -6 -6 -6 -6 -6 ------- Run | Yrd Mat Min Sub Mat Fac Low Low Zio Pro Fac Was Fac Low Low Robot Analysis Total 3 | . 1 . . 2 . . . . . . . . . . Derelict Logs Recovered 9 | . . 1 1 . . 1 2 2 1 . . . . 1 Drone Launches . | . . . . . . . . . . . . . . . Drone Recoveries . | . . . . . . . . . . . . . . . Exploration | -11 -10 -10 -10 -8 -7 -7 -7 -7 -6 -6 -6 -6 -6 -6 ------------- Run | Yrd Mat Min Sub Mat Fac Low Low Zio Pro Fac Was Fac Low Low Turns Passed 14523 | 75 279 774 2934 3874 2602 240 275 663 560 1046 51 846 166 138 Spaces Moved 12111 | 46 214 628 1105 1080 2444 519 710 1618 753 1414 104 1120 212 144 Core 10 | 1 . . . . . . . . . 1 . 8 . . Treads 1905 | . . . 363 940 602 . . . . . . . . . Legs . | . . . . . . . . . . . . . . . Wheels 1769 | 45 214 628 742 140 . . . . . . . . . . Hover 8005 | . . . . . 1463 519 710 1618 753 1413 104 1069 212 144 Flight 422 | . . . . . 379 . . . . . . 43 . . Fastest Speed 22 | 50 100 115 115 155 22 38 38 38 38 22 30 35 62 62 Average Speed 89 | 98 114 115 193 298 67 38 38 38 38 39 43 54 62 62 Slowest Speed 650 | 100 115 115 295 406 330 38 38 38 38 650 45 126 126 62 Overloaded Moves 76 | . . . . . 33 . . . . 34 7 2 . . Propulsion Burnouts . | . . . . . . . . . . . . . . . Robots Hopped 3 | . . . . . 3 . . . . . . . . . Cave-ins Triggered . | . . . . . . . . . . . . . . . Exploration Rate (%) 60 | 5 48 98 73 94 62 62 68 87 80 32 77 33 52 29 Regions Visited 14 Branch Regions 8 Pre-discovered Areas 7 | . 1 . 1 . . . . 2 1 . . 1 . 1 Known Exits Taken 8 | . . . . 1 1 1 1 1 1 . . 1 1 . Unknown Exits Taken 4 | 1 1 1 1 . . . . . . . . . . . Scrap Searched 29 | . . 3 9 . . 4 3 4 4 . . . 2 . Spaces Dug 93 | . . 17 25 7 24 . 1 3 8 . . 8 . . Terrain Destroyed 415 | . . 17 104 62 46 . 1 3 8 18 . 156 . . Melee 27 | . . . . . 12 . 1 3 8 . . 3 . . Projectile 37 | . . . 2 27 4 . . . . . . 4 . . AOE 351 | . . 17 102 35 30 . . . . 18 . 149 . . Terrain Rammed . | . . . . . . . . . . . . . . . Walls Destroyed . | . . . . . . . . . . . . . . . Machines Disabled . | . . . . . . . . . . . . . . . Actions | -11 -10 -10 -10 -8 -7 -7 -7 -7 -6 -6 -6 -6 -6 -6 --------- Run | Yrd Mat Min Sub Mat Fac Low Low Zio Pro Fac Was Fac Low Low Total 15198 | 64 237 674 1814 1544 3286 562 711 1655 1003 1832 108 1302 225 181 Wait 1973 | 1 5 32 593 172 507 39 . . 236 302 1 59 . 26 Move 12092 | 45 213 627 1104 1079 2437 518 709 1617 752 1414 103 1119 211 144 Hop 3 | . . . . . 3 . . . . . . . . . Pick Up 164 | 6 10 3 28 54 20 2 . 6 . 13 2 18 . 2 Fast Attach 77 | 7 . . 3 14 29 . . 5 . 9 . 8 2 . Attach 72 | . . . 4 24 13 1 . 1 . 13 2 14 . . Detach 18 | . . . 1 2 5 . . . . 5 . 5 . . Swap 110 | 1 1 4 11 24 43 . . 5 1 9 . 11 . . Drop 159 | . 2 4 10 49 49 2 . 12 . 11 . 16 2 2 Fire 246 | 4 6 4 58 123 26 . . . . 3 . 22 . . Melee 152 | . . . 1 . 49 . 2 9 14 43 . 17 10 7 Ram . | . . . . . . . . . . . . . . . Kick . | . . . . . . . . . . . . . . . Crush . | . . . . . . . . . . . . . . . Escape Stasis 13 | . . . . . . . . . . . . 13 . . Rewire . | . . . . . . . . . . . . . . . Trap 115 | . . . 1 . 104 . . . . 10 . . . . Miscellaneous 4 | . . . . 3 1 . . . . . . . . . Route ------- -11/Scrapyard -10/Materials -10/Mines (discovered 3 exits: [*Mat x2] / *Sub) -10/Subcaves -8/Materials (discovered 3 exits: *Fac x3) -7/Factory (discovered 5 exits: *Fac x4 / *Low) -7/Lower Caves -7/Lower Caves (discovered 2 exits: *Fac / *Zio) -7/Zion (discovered 2 exits: *Dee / *Pro) -6/Proximity Caves -6/Factory (discovered 4 exits: *Fac x2 / Low x2) -6/Waste -6/Factory (discovered 2 exits: *Low x2) -6/Lower Caves -6/Lower Caves History --------- Turn | Location | Event 29 | -11/Scrapyard | Discovered new exit (range 15) 76 | -11/Scrapyard | Entered Materials 197 | -10/Materials | Central database locked down 283 | -10/Materials | Discovered new exit (range 7) 305 | -10/Materials | Build established: Mutant 355 | -10/Materials | Entered Mines 371 | -10/Mines | Met a Derelict bent on vengeance 379 | -10/Mines | Learned Materials trap positions 394 | -10/Mines | Found a hidden stash of uninstalled traps 442 | -10/Mines | Discovered new exit (range 9) 588 | -10/Mines | Joined a pair of Derelicts in attacking an 0b10 outpost 652 | -10/Mines | Assisted by bots powering up and referring to "LRC-V3" 697 | -10/Mines | Received a Rocket Launcher from a helpful Derelict 839 | -10/Mines | Discovered new exit (range 13) 1103 | -10/Mines | Discovered new exit (range 11) 1129 | -10/Mines | Entered Subcaves 1129 | -10/Subcaves | Accompanied by 3 allies 1514 | -10/Subcaves | Shifting Twisted Machinery released Flamer 1577 | -10/Subcaves | Shifting Twisted Machinery released Multitool 1764 | -10/Subcaves | A swath of the cavern ceiling suddenly collapsed 2213 | -10/Subcaves | Visited 4L-MR0's lab 2247 | -10/Subcaves | Found Power Bank 3024 | -10/Subcaves | Shifting Twisted Machinery released Sub. Power Source 3028 | -10/Subcaves | Build established: Hauler-Mutant 3539 | -10/Subcaves | Learned location of Mines (-10) 3588 | -10/Subcaves | Shifting Twisted Machinery released Flamer 3766 | -10/Subcaves | Ambushed by Subdwellers from Twisted Machinery 3769 | -10/Subcaves | Core integrity fell below 50% 3777 | -10/Subcaves | Core integrity fell below 20% 3828 | -10/Subcaves | Disturbed a concealed Subdweller 4003 | -10/Subcaves | Discovered new exit (range 12) 4063 | -10/Subcaves | Entered Materials 4063 | -8/Materials | Evolved 4 slots: Propulsion x2, Utility x2 4064 | -8/Materials | Loaded intel: 5 trap records 4432 | -8/Materials | Lost 7 parts (1p3n1u2w) 4456 | -8/Materials | Discovered new exit (range 15) 4556 | -8/Materials | Met 7R-MNS 6274 | -8/Materials | Garrison activated, responded to threat 6762 | -8/Materials | Discovered new exit (range 13) 7206 | -8/Materials | Discovered new exit (range 9) 7264 | -8/Materials | Central database locked down 7856 | -8/Materials | Identified exit to Factory 7937 | -8/Materials | Entered Factory 7937 | -7/Factory | Evolved 2 slots: Utility x2 7938 | -7/Factory | Caught up to 7R-MNS 8006 | -7/Factory | Attacked by 7R-MNS 8103 | -7/Factory | Build established: Scavenger-Mutant 8254 | -7/Factory | Allied Derelicts emerged from ambush trap array 8965 | -7/Factory | Identified exit to Factory 9053 | -7/Factory | Build established: Hacker-Mutant 9216 | -7/Factory | Garrison activated, responded to threat 9386 | -7/Factory | Cargo convoy interrupted 9519 | -7/Factory | Attached Power Bank, gained temporary slots: Power x3 10337 | -7/Factory | Search patrols dispatched 10525 | -7/Factory | Core integrity fell below 50% 10534 | -7/Factory | Discovered new exit (range 10) 10539 | -7/Factory | Identified exit to Lower Caves 10539 | -7/Factory | Entered Lower Caves 10550 | -7/Lower Caves | Destroyed 10 combat bots 10567 | -7/Lower Caves | Learned 8 Factory zone layouts 10591 | -7/Lower Caves | Build established: Trapper-Scout 10651 | -7/Lower Caves | Encountered a Warlord checkpoint 10693 | -7/Lower Caves | Discovered new exit (range 14) 10698 | -7/Lower Caves | Identified exit to Lower Caves 10779 | -7/Lower Caves | Entered another Lower Caves area 10781 | -7/Lower Caves | Discovered exit to Factory (range 14) 10856 | -7/Lower Caves | Encountered a Warlord checkpoint 10866 | -7/Lower Caves | Learned Factory terminal intel 10918 | -7/Lower Caves | Discovered new exit (range 4) 10921 | -7/Lower Caves | Identified exit to Zion 10962 | -7/Lower Caves | Spotted B-75 Beast 11054 | -7/Lower Caves | Entered Zion 11067 | -7/Zion | Discovered new exit (range 11) 11071 | -7/Zion | Identified exit to Proximity Caves 11088 | -7/Zion | Found CR-A16's Pointy Stick 11116 | -7/Zion | Received a visual enhancement algorithm 11141 | -7/Zion | Learned Factory terminal intel 11152 | -7/Zion | Learned location of Data Miner (-6) 11197 | -7/Zion | Learned location of Warlord (-4) 11208 | -7/Zion | Found Prototype Special Weapon 11208 | -7/Zion | Identified RU-N14's Throwing Claymores 11215 | -7/Zion | Found RU-N14's Throwing Claymores 11233 | -7/Zion | Learned 12 Factory zone layouts 11238 | -7/Zion | Learned Factory emergency access door positions 11370 | -7/Zion | Found RU-N14's Throwing Claymores 11578 | -7/Zion | Discovered new exit (range 5) 11579 | -7/Zion | Saw the warning signs outside the Deep Caves entrance 11579 | -7/Zion | Identified exit to Deep Caves 11717 | -7/Zion | Entered Proximity Caves 11720 | -6/Proximity Caves | Spotter reported a threat 11720 | -6/Proximity Caves | Spotter reported a threat 11891 | -6/Proximity Caves | Build established: Trapper-Gladiator 12045 | -6/Proximity Caves | Spotter reported a threat 12260 | -6/Proximity Caves | Discovered exit to Factory (range 5) 12274 | -6/Proximity Caves | Spotted B-75 Beast 12277 | -6/Proximity Caves | Entered Factory 12277 | -6/Factory | Evolved 2 slots: Utility x2 12278 | -6/Factory | Identified exit to Lower Caves 12279 | -6/Factory | Identified exit to Factory 12281 | -6/Factory | Loaded intel: 26 terminal locations 12439 | -6/Factory | Fabricated Cld. Gravmag System (x1) 12546 | -6/Factory | Repaired Cld. Gravmag System 12627 | -6/Factory | Search patrols dispatched 12779 | -6/Factory | Repaired Cld. Gravmag System 12929 | -6/Factory | Build established: Trapper-Scout 13069 | -6/Factory | Destroyed 9 combat bots 13076 | -6/Factory | Lost 4 parts (2n2u) 13229 | -6/Factory | Cargo convoy interrupted 13280 | -6/Factory | Found Prototype Launcher 13291 | -6/Factory | Identified Adv. Micro-nuke Launcher 13294 | -6/Factory | Found Prototype Launcher 13294 | -6/Factory | Identified Mni. Smartbomb Launcher 13297 | -6/Factory | Found Prototype Hackware 13314 | -6/Factory | Discovered exit to Factory (range 15) 13323 | -6/Factory | Sucked down chute 13323 | -6/Factory | Entered Waste 13333 | -6/Waste | Spotted C-40 Crusher 13338 | -6/Waste | EMP discharged 13348 | -6/Waste | Spotted C-40 Crusher 13349 | -6/Waste | Spotted C-40 Crusher 13351 | -6/Waste | Spotted C-40 Crusher 13354 | -6/Waste | Lost 4 parts (1p3u) 13354 | -6/Waste | Spotted C-40 Crusher 13356 | -6/Waste | Spotted C-40 Crusher 13364 | -6/Waste | Discovered new exit (range 12) 13373 | -6/Waste | Identified exit to Factory 13374 | -6/Waste | Entered Factory 13375 | -6/Factory | Loaded intel: 26 terminal locations 13424 | -6/Factory | Destroyed 7 combat bots 13557 | -6/Factory | Build established: Hacker-Mutant 13573 | -6/Factory | Fabricated Tiamat Missile Launcher? 13594 | -6/Factory | Identified Exp. System Shield 13718 | -6/Factory | Fabricated Imp. Hacking Suite? 13724 | -6/Factory | First assault squad dispatched 13810 | -6/Factory | Core integrity fell below 50% 13862 | -6/Factory | Core integrity fell below 20% 13891 | -6/Factory | Destroyed 15 combat bots 13892 | -6/Factory | Lost 10 parts (1p5n3u1w) 14220 | -6/Factory | Entered Lower Caves 14229 | -6/Lower Caves | Spotted B-75 Beast 14379 | -6/Lower Caves | Discovered new exit (range 12) 14385 | -6/Lower Caves | Identified exit to Lower Caves 14386 | -6/Lower Caves | Entered another Lower Caves area 14524 | -6/Lower Caves | Destroyed by H-66 Slayer with Gauss Rifle Last Messages --------------- repair. 14421_ Dropped Gyrokinetic Inverter. 14422_ Acquired Mic. Nuclear Core. 14423_ Dropped Mic. Nuclear Core. 14424_ Acquired Gyrokinetic Inverter. 14441_ SJ-2BA(k) breaks down the debris. 14444_ System corrupted: Energy discharge (-40). 14449_ Penetrated by Slug. 14449_ EP-EWP(k) breaks down the debris. 14461_ System corrupted: Matter fused (-8). 14487_ Connecting with WAR.Sys... >>Open Door Sealed Heavy Doors opened. 14514_ Penetrated by Slug. 14517_ System corrupted: Component data lost. 14517_ Destroyed Phase Shifter. 14517_ Slug penetrates Wall. 14521_ Penetrated by Slug. 14524_ Slug penetrates Wall. 14524_ Penetrated by Slug. Map ----- +----------------------------------------------------+ | | | | | | | | | | | | | | | | | | | | | ?????????????????????????????????????????????????? | | ?????????????????????????????????????????????????? | | ?????????????????????????????????????????????????? | | ?????????????????????????????????????????????????? | | ?????????????????????????????????????????????????? | | ?????????????????????????????????????????????????? | | ?????????????????????????????????????????????????? | | ?????????????????????????????????????????????????? | | ?????????????????????????????????????????????????? | | ?????????????????????????????????????????????????? | | ?????????????????????????????????????????????????? | | ???????????????????????######????????????????????? | | ???????????????????????#X ##???????????????????? | | ???????????????????????## #[[#???????????????????? | | ????????????????????????# #!!#??????????????#####? | | ????????????????????????#@####?????######??## ## | | ??????????????????????####h#??????## #?## # | | ??????????????????????# # ##?##### #?## # | | ?????????????????????## ### #?## ?? | | ????????????????????## ## #?# #??# | | ????????????????????# ### #### | | ???????????????????## ## | | ????????????# ## | | ???????????????# ### | | ???????????????## #### | | ????????????????# #?# | | ????????????##### ##?# # | | ?????????#### ### ##??# # ###### | | ?????????# #??# #???##### #????? | | ?????????# ## ???# #???????# ##???? | | ?????????# ### ??? ####???????# ###?? | | ???????### ### ?? #??????????## ##? | | ???????# ### ?? #???????????# ## | | ????????# ### ?? ???????????## # | | ?????????# ### ?## ????????????## | | ???????????# #?????# ## ????????????## | | ???????????## ##?????###??##?????????????# | | ????????????### ##?????????????????????????## ## | | ?????????????## #??????????????????????????# #? | | ??????????#### #???????####???????????????# ## | +----------------------------------------------------+ Best States ------------- Heat Dissipation 53 Energy Generation 18 Energy Capacity 300 Matter Stores 670 Matter Capacity 800 Sight Range 18 Robot Scan Range 15 Terrain Scan Density 10 Additional Mass Support 20 Armor Coverage 800 Core Shielding 20 Evasion (%) 64 Melee Accuracy 8 Target Analysis 6 Core Analysis 6 Recoil Reduction 4 Matter Filtering 50 Energy Filtering 30 Offensive Hacking 40 Defensive Hacking 16 Authchip Count 2 Trap Extractor Capacity 6 Item Schematics ----------------- Multitool | -8/Materials | Scanalyzed Hvy. Assault Cannon | -8/Materials | Hacked Imp. VTOL Module | -8/Materials | Hacked Hacking Suite | -8/Materials | Scanalyzed Graphene Brace | -8/Materials | Scanalyzed Trap Extractor | -8/Materials | Hacked Cld. Pulse Rifle | -7/Factory | Scanalyzed Transport Network Coupler | -7/Factory | Scanalyzed Adv. Weight Redist. System | -7/Factory | Scanalyzed Cesium-ion Thruster | -7/Factory | Scanalyzed Lrg. Storage Unit | -7/Factory | Scanalyzed Imp. Transmission Jammer | -7/Factory | Hacked Exp. Targeting Computer | -7/Factory | Hacked Cld. Gravmag System | -7/Factory | Scanalyzed Mak. Transmission Jammer | -7/Zion | Archive Mak. Sword | -7/Zion | Archive Lyr. Heavy Armor Plating | -7/Zion | Archive Imp. Launcher Guidance Computer | -7/Zion | Archive Remote Datajack | -7/Zion | Archive Hvy. Pick | -7/Zion | Archive Med. Treads | -7/Zion | Archive EM Disruption Field | -7/Zion | Archive Imp. Deuterium Engine | -7/Zion | Archive 0b10 Decoder Chip [Looter] | -7/Zion | Archive Mak. Salvage Targeting Computer | -7/Zion | Archive Beamcaster | -7/Zion | Archive Mak. Flight Unit | -7/Zion | Archive Fusion Compressor | -7/Zion | Archive Proton Missile Launcher | -7/Zion | Archive Tiamat Missile Launcher | -7/Zion | Archive Gravity Neutralizer | -6/Factory | Scanalyzed Imp. Hacking Suite | -6/Factory | Hacked Exp. System Shield | -6/Factory | Scanalyzed Imp. Fusion Compressor | -6/Factory | Hacked Cmb. Airjet | -6/Factory | Hacked Robot Schematics ------------------ G-47 Trooper | -7/Zion | Archive T-07 Excavator | -7/Zion | Archive Fabricated ------------ Cld. Gravmag System | x1 | -6/Factory | Authchip Tiamat Missile Launcher | x1 | -6/Factory | Authchip Imp. Hacking Suite | x1 | -6/Factory | Authchip Alien Tech Used ----------------- None Achievements -------------- None Challenges ------------ None Game ------ Seed DeliveryCommTerrabomb Manual? 1 Play Time 03:33:40 Cumulative 446.2 hours Start 2024.07.07 @ 19:49:24 End 2024.07.08 @ 19:54:23 Sessions 3 Manual Loads 0 Difficulty Rogue Special Mode None Game No. 172 Rogue 169 Adventurer 3 Explorer 0 Win Type - Total 7 Types 4/1/0/1/0/1/0/0/0 Lore% 82 Gallery% 88 Achievement% 86 Wizard Run 0 Options --------- Layout 2 ASCII 0 Keyboard 0 Movement Numpad Keybinds 0 Fullscreen 2 Font 24/Smallcaps Map View 50x44 Zoom Use 0% Tactical HUD 1 Map Filters NONE Filters NONE Steam 1 RUN: 34c6a14c-d1c1-4cd6-862d-791d05f47ad3